Workbook

Sheet Лист1
A1: Школа | C1: МБОУ "Паньшинская СШ" | F1: Утвердил: | G1: должность | H1: Директор ООО "ДонАппетит"
A2: Типовое примерное меню приготавливаемых блюд | G2: фамилия | H2: Лукашевич Е.Н.
A3: Возрастная категория | E3: 7-11 лет | G3: дата | H3: 12 | I3: 1 | J3: 2026
H4: день | I4: месяц | J4: год
A5: Неделя | B5: День недели | C5: Прием пищи | D5: Раздел меню | E5: Блюда | F5: Вес блюда, г | G5: Белки | H5: Жиры | I5: Углеводы | J5: Калорийность | K5: № рецептуры | L5: Цена
A6: 1 | B6: 1 | C6: Завтрак | D6: гор.блюдо | E6: Каша вязкая молочная рисовая | F6: 200 | G6: 5.6 | H6: 10.6 | I6: 40.7 | J6: 274 | K6: 174
D7: гор.напиток | E7: Чай с сахаром | F7: 200/15 | G7: 0.1 | H7: 0 | I7: 17.3 | J7: 59.3 | K7: 376
D8: хлеб | E8: хлеб пшеничный | F8: 40 | G8: 3 | H8: 0.2 | I8: 19.5 | J8: 91.9 | K8: ТТК№6
D9: гор.блюдо | E9: Блинчики с джемом в асс. | F9: 120 | G9: 9.3 | H9: 10.9 | I9: 47.8 | J9: 326.7 | K9: 338 | L9: 139.1
D12: итого | F12: 555 | G12: =SUM(G6:G11) -> 18 | H12: 12.2 | I12: =SUM(I6:I11) -> 125.3 | J12: =SUM(J6:J11) -> 751.9 | L12: =SUM(L6:L11) -> 139.1
A13: =A6 -> 1 | B13: =B6 -> 1 | C13: Обед | D13: закуска
D14: 1 блюдо
D15: 2 блюдо
D16: гарнир
D17: напиток
D18: хлеб бел.
D19: хлеб черн.
D22: итого | F22: =SUM(F13:F21) -> 0 | G22: =SUM(G13:G21) -> 0 | H22: =SUM(H13:H21) -> 0 | I22: =SUM(I13:I21) -> 0 | J22: =SUM(J13:J21) -> 0 | L22: =SUM(L16:L21) -> 0
A23: =A6 -> 1 | B23: =B6 -> 1 | C23: Итого за день: | F23: =F12+F22 -> 555 | G23: =G12+G22 -> 18 | H23: =H12+H22 -> 12.2 | I23: =I12+I22 -> 125.3 | J23: =J12+J22 -> 751.9 | L23: =L12+L22 -> 139.1
A24: 1 | B24: 2 | C24: Завтрак | D24: гор.блюдо | E24: Каша из пшена и риса дружба молочная №294 | F24: 200 | G24: 5.6 | H24: 10.6 | I24: 40.7 | J24: 223 | K24: 175
D25: гор.блюдо | E25: омлет натуральный | F25: 120 | G25: 8.3 | H25: 9.3 | I25: 12.6 | J25: 97.5 | K25: 144
D26: гор.напиток | E26: Чай с сахаром и лимоном | F26: 200/15/7 | G26: 0.3 | H26: 0 | I26: 15.2 | J26: 60 | K26: 377
D27: хлеб | E27: Хлеб пшеничный | F27: 40 | G27: 3 | H27: 0.2 | I27: 19.5 | J27: 91.9 | K27: ТТК №6 | L27: 139.1
D28: фрукты
D31: итого | F31: 502 | G31: =SUM(G24:G30) -> 17.2 | H31: =SUM(H24:H30) -> 20.1 | I31: =SUM(I24:I30) -> 88 | J31: =SUM(J24:J30) -> 472.4 | L31: =SUM(L25:L30) -> 139.1
A32: =A24 -> 1 | B32: =B24 -> 2 | C32: Обед | D32: закуска
D33: 1 блюдо
D34: 2 блюдо
D35: гарнир
D36: напиток
D37: хлеб бел.
D38: хлеб черн.
D41: итого | F41: =SUM(F32:F40) -> 0 | G41: =SUM(G32:G40) -> 0 | H41: =SUM(H32:H40) -> 0 | I41: =SUM(I32:I40) -> 0 | J41: =SUM(J32:J40) -> 0 | L41: =SUM(L32:L40) -> 0
A42: =A24 -> 1 | B42: =B24 -> 2 | C42: Итого за день: | F42: =F31+F41 -> 502 | G42: =G31+G41 -> 17.2 | H42: =H31+H41 -> 20.1 | I42: =I31+I41 -> 88 | J42: =J31+J41 -> 472.4 | L42: =L31+L41 -> 139.1
A43: 1 | B43: 3 | C43: Завтрак | D43: гор.блюдо | E43: Гречка по-купечески №468 | F43: 200 | G43: 21.9 | H43: 25.3 | I43: 40.1 | J43: 425
D44: гор.блюдо | E44: Фрикадельки по-калининградски | F44: 50 | G44: 5.2 | H44: 5.3 | I44: 4.3 | J44: 89.9 | K44: 302
D45: гор.напиток | E45: Чай черный с яблоком | F45: 200 | G45: 0.3 | H45: 0.1 | I45: 10.2 | J45: 43 | K45: 685
D46: хлеб | E46: Хлеб пшеничный | F46: 40 | G46: 3 | H46: 0.2 | I46: 19.5 | J46: 91.9 | K46: ТТК №547 | L46: 139.1
D47: овощи | E47: овощи по сезону | F47: 60 | G47: 0.5 | H47: 0.1 | I47: 0.1 | J47: 7.6 | K47: ТТК№1,2,3,4,5
D50: итого | F50: 525 | G50: =SUM(G43:G49) -> 30.9 | H50: =SUM(H43:H49) -> 31 | I50: =SUM(I43:I49) -> 74.2 | J50: =SUM(J43:J49) -> 657.4 | L50: =SUM(L43:L49) -> 139.1
A51: =A43 -> 1 | B51: =B43 -> 3 | C51: Обед | D51: закуска
D52: 1 блюдо
D53: 2 блюдо
D54: гарнир
D55: напиток
D56: хлеб бел.
D57: хлеб черн.
D60: итого | F60: =SUM(F51:F59) -> 0 | G60: =SUM(G51:G59) -> 0 | H60: =SUM(H51:H59) -> 0 | I60: =SUM(I51:I59) -> 0 | J60: =SUM(J51:J59) -> 0 | L60: =SUM(L51:L59) -> 0
A61: =A43 -> 1 | B61: =B43 -> 3 | C61: Итого за день: | F61: =F50+F60 -> 525 | G61: =G50+G60 -> 30.9 | H61: =H50+H60 -> 31 | I61: =I50+I60 -> 74.2 | J61: =J50+J60 -> 657.4 | L61: =L50+L60 -> 139.1
A62: 1 | B62: 4 | C62: Завтрак | D62: гор.блюдо | E62: Каша вязкая молочная кукурузная | F62: 200 | G62: 5.6 | H62: 10.6 | I62: 40.7 | J62: 223 | K62: 118
D63: гор. длюдо | E63: Сырники творожные с джемом | F63: 90 | G63: 14.5 | H63: 13.8 | I63: 47.1 | J63: 370 | K63: 291
D64: гор.напиток | E64: Чай с сахаром | F64: 200/15 | G64: 0.1 | H64: 0 | I64: 17.3 | J64: 59.3 | K64: 376
D65: хлеб | E65: Хлеб пшеничный | F65: 40 | G65: 3 | H65: 0.2 | I65: 19.5 | J65: 91.9 | K65: ТТК № 6 | L65: 139.1
D69: итого | F69: 515 | G69: =SUM(G62:G68) -> 23.2 | H69: =SUM(H62:H68) -> 24.6 | I69: =SUM(I62:I68) -> 124.6 | J69: =SUM(J62:J68) -> 744.2 | L69: =SUM(L62:L68) -> 139.1
A70: =A62 -> 1 | B70: =B62 -> 4 | C70: Обед | D70: закуска
D71: 1 блюдо
D72: 2 блюдо
D73: гарнир
D74: напиток
D75: хлеб бел.
D76: хлеб черн.
D79: итого | F79: =SUM(F70:F78) -> 0 | G79: =SUM(G70:G78) -> 0 | H79: =SUM(H70:H78) -> 0 | I79: =SUM(I70:I78) -> 0 | J79: =SUM(J70:J78) -> 0 | L79: =SUM(L70:L78) -> 0
A80: =A62 -> 1 | B80: =B62 -> 4 | C80: Итого за день: | F80: =F69+F79 -> 515 | G80: =G69+G79 -> 23.2 | H80: =H69+H79 -> 24.6 | I80: =I69+I79 -> 124.6 | J80: =J69+J79 -> 744.2 | L80: =L69+L79 -> 139.1
A81: 1 | B81: 5 | C81: Завтрак | D81: гор.блюдо | E81: Каша из смеси круп (гречневая, овсяная, пшено)вязкая с морковью | F81: 185 | G81: 6.5 | H81: 11.1 | I81: 30.8 | J81: 255 | K81: 202
D82: гор.блюдо | E82: блинчики с джемом в асс | F82: 120 | G82: 9.3 | H82: 10.9 | I82: 47.8 | J82: 326.7 | K82: 338
D83: гор.напиток | E83: чай с сахаром каркаде | F83: 215 | G83: 0.2 | H83: 0 | I83: 15 | J83: 60.5 | K83: 685
D84: хлеб | E84: Хлеб пшеничный | F84: 40 | G84: 3 | H84: 0.2 | I84: 19.5 | J84: 91.9 | K84: ТТК № 6 | L84: 139.1
D85: фрукты
D87: итого | F87: 500 | G87: =SUM(G81:G86) -> 19 | H87: =SUM(H81:H86) -> 22.2 | I87: =SUM(I81:I86) -> 113.1 | J87: =SUM(J81:J86) -> 734.1 | L87: =SUM(L81:L86) -> 139.1
A88: =A81 -> 1 | B88: =B81 -> 5 | C88: Обед | D88: закуска
D89: 1 блюдо
D90: 2 блюдо
D91: гарнир
D92: напиток
D93: хлеб бел.
D94: хлеб черн.
D97: итого | F97: =SUM(F88:F96) -> 0 | G97: =SUM(G88:G96) -> 0 | H97: =SUM(H88:H96) -> 0 | I97: =SUM(I88:I96) -> 0 | J97: =SUM(J88:J96) -> 0 | L97: =SUM(L88:L96) -> 0
A98: =A81 -> 1 | B98: =B81 -> 5 | C98: Итого за день: | F98: =F87+F97 -> 500 | G98: =G87+G97 -> 19 | H98: =H87+H97 -> 22.2 | I98: =I87+I97 -> 113.1 | J98: =J87+J97 -> 734.1 | L98: =L87+L97 -> 139.1
A99: 1 | B99: 6 | C99: Завтрак | D99: гор.блюдо | E99: Гуляш из мяса птиц№337 | F99: 90 | G99: 11.1 | H99: 10.4 | I99: 3.2 | J99: 150.3 | K99: 337
D100: гор. блюдо | E100: каша вязкая гречневая | F100: 150 | G100: 6.1 | H100: 4.8 | I100: 37.8 | J100: 178.2 | K100: 302
D101: гор.напиток | E101: Чай с сахаром | F101: 200/15 | G101: 0.1 | H101: 0 | I101: 17.3 | J101: 59.3 | K101: 376
D102: хлеб | E102: хлеб пшеничный | F102: 45 | G102: 3.8 | H102: 0.2 | I102: 21.9 | J102: 103.4 | K102: ТТК№6 | L102: 139.1
D103: фрукты
D106: итого | F106: 500 | G106: =SUM(G99:G105) -> 21.1 | H106: =SUM(H99:H105) -> 15.4 | I106: =SUM(I99:I105) -> 80.2 | J106: =SUM(J99:J105) -> 491.2 | L106: =SUM(L99:L105) -> 139.1
A107: =A99 -> 1 | B107: =B99 -> 6 | C107: Обед | D107: закуска
D108: 1 блюдо
D109: 2 блюдо
D110: гарнир
D111: напиток
D112: хлеб бел.
D113: хлеб черн.
D116: итого | F116: =SUM(F107:F115) -> 0 | G116: =SUM(G107:G115) -> 0 | H116: =SUM(H107:H115) -> 0 | I116: =SUM(I107:I115) -> 0 | J116: =SUM(J107:J115) -> 0 | L116: =SUM(L107:L115) -> 0
A117: =A99 -> 1 | B117: =B99 -> 6 | C117: Итого за день: | F117: =F106+F116 -> 500 | G117: =G106+G116 -> 21.1 | H117: =H106+H116 -> 15.4 | I117: =I106+I116 -> 80.2 | J117: =J106+J116 -> 491.2 | L117: =L106+L116 -> 139.1
A118: 2 | B118: 1 | C118: Завтрак | D118: гор.блюдо | E118: каша овсяная на молоке | F118: 200 | G118: 5 | H118: 10.1 | I118: 30.5 | J118: 260.8 | K118: 175
D119: гор.блюдо | E119: пицца школьная вар1 | F119: 100 | G119: 12.8 | H119: 22.8 | I119: 65.4 | J119: 368.7 | K119: 288
D120: гор.напиток | E120: Чай с сахаром и лимоном | F120: 200/15/7 | G120: 0.3 | H120: 0 | I120: 15.2 | J120: 60 | K120: 377
D121: хлеб | L121: 139.1
D122: фрукты
D125: итого | F125: 532 | G125: =SUM(G118:G124) -> 18.1 | H125: =SUM(H118:H124) -> 32.9 | I125: =SUM(I118:I124) -> 111.1 | J125: =SUM(J118:J124) -> 689.5 | L125: =SUM(L118:L124) -> 139.1
A126: =A118 -> 2 | B126: =B118 -> 1 | C126: Обед | D126: закуска
D127: 1 блюдо
D128: 2 блюдо
D129: гарнир
D130: напиток
D131: хлеб бел.
D132: хлеб черн.
D135: итого | F135: =SUM(F126:F134) -> 0 | G135: =SUM(G126:G134) -> 0 | H135: =SUM(H126:H134) -> 0 | I135: =SUM(I126:I134) -> 0 | J135: =SUM(J126:J134) -> 0 | L135: =SUM(L126:L134) -> 0
A136: =A118 -> 2 | B136: =B118 -> 1 | C136: Итого за день: | F136: =F125+F135 -> 532 | G136: =G125+G135 -> 18.1 | H136: =H125+H135 -> 32.9 | I136: =I125+I135 -> 111.1 | J136: =J125+J135 -> 689.5 | L136: =L125+L135 -> 139.1
A137: 2 | B137: 2 | C137: Завтрак | D137: гор.блюдо | E137: оладьи со сгущенным молоком | F137: 150 | G137: 6.5 | H137: 6.8 | I137: 40.2 | J137: 217.2 | K137: 180
D138: гор.блюдо | E138: Каша вязкая гречневая молочная | F138: 200 | G138: 5.6 | H138: 10.6 | I138: 40.7 | J138: 223 | K138: 116
D139: гор.напиток | E139: Чай с сахаром каркаде | F139: 200/15 | G139: 0.2 | H139: 0 | I139: 15 | J139: 60.5 | K139: 685
D140: хлеб | E140: Хлеб пшеничный | F140: 40 | G140: 3 | H140: 0.2 | I140: 19.5 | J140: 91.9 | K140: ТТК №6 | L140: 139.1
D144: итого | F144: 525 | G144: =SUM(G137:G143) -> 15.3 | H144: =SUM(H137:H143) -> 17.6 | I144: =SUM(I137:I143) -> 115.4 | J144: =SUM(J137:J143) -> 592.6 | L144: =SUM(L137:L143) -> 139.1
A145: =A137 -> 2 | B145: =B137 -> 2 | C145: Обед | D145: закуска
D146: 1 блюдо
D147: 2 блюдо
D148: гарнир
D149: напиток
D150: хлеб бел.
D151: хлеб черн.
D154: итого | F154: =SUM(F145:F153) -> 0 | G154: =SUM(G145:G153) -> 0 | H154: =SUM(H145:H153) -> 0 | I154: =SUM(I145:I153) -> 0 | J154: =SUM(J145:J153) -> 0 | L154: =SUM(L145:L153) -> 0
A155: =A137 -> 2 | B155: =B137 -> 2 | C155: Итого за день: | F155: =F144+F154 -> 525 | G155: =G144+G154 -> 15.3 | H155: =H144+H154 -> 17.6 | I155: =I144+I154 -> 115.4 | J155: =J144+J154 -> 592.6 | L155: =L144+L154 -> 139.1
A156: 2 | B156: 3 | C156: Завтрак | D156: гор.блюдо | E156: Каша молочная вязкая с тыквой | F156: 200 | G156: 5 | H156: 10.1 | I156: 30.5 | J156: 260.8 | K156: 120
D157: гор.блюдо | E157: Фриттата с сыром и ветчиной | F157: 100 | G157: 9.6 | H157: 10.3 | I157: 1.6 | J157: 137.6 | K157: 186
D158: гор.напиток | E158: Чай с яблоком | F158: 200 | G158: 0.3 | H158: 0.1 | I158: 10.2 | J158: 43 | K158: ТТК№547
D159: хлеб | E159: Хлеб пшеничный | F159: 55 | G159: 4.1 | H159: 0.3 | I159: 26.8 | J159: 126.4 | K159: ТТК №6
D160: соус томатный | F160: 30 | G160: 1.1 | H160: 2.5 | I160: 2.5 | J160: 32 | K160: 593 | L160: 139.1
D163: итого | F163: 515 | G163: =SUM(G156:G162) -> 20.1 | H163: =SUM(H156:H162) -> 23.3 | I163: =SUM(I156:I162) -> 71.6 | J163: =SUM(J156:J162) -> 599.8 | L163: =SUM(L156:L162) -> 139.1
A164: =A156 -> 2 | B164: =B156 -> 3 | C164: Обед | D164: закуска
D165: 1 блюдо
D166: 2 блюдо
D167: гарнир
D168: напиток
D169: хлеб бел.
D170: хлеб черн.
D173: итого | F173: =SUM(F164:F172) -> 0 | G173: =SUM(G164:G172) -> 0 | H173: =SUM(H164:H172) -> 0 | I173: =SUM(I164:I172) -> 0 | J173: =SUM(J164:J172) -> 0 | L173: =SUM(L164:L172) -> 0
A174: =A156 -> 2 | B174: =B156 -> 3 | C174: Итого за день: | F174: =F163+F173 -> 515 | G174: =G163+G173 -> 20.1 | H174: =H163+H173 -> 23.3 | I174: =I163+I173 -> 71.6 | J174: =J163+J173 -> 599.8 | L174: =L163+L173 -> 139.1
A175: 2 | B175: 4 | C175: Завтрак | D175: гор.блюдо | E175: Каша молочная манная жидкая | F175: 200 | G175: 5.5 | H175: 7.2 | I175: 33.6 | J175: 243 | K175: 311
D176: гор.блюдо | E176: Запеканка из творога | F176: 120 | G176: 12.7 | H176: 6 | I176: 27.9 | J176: 216.5 | K176: 154
D177: гор.напиток | E177: Чай с сахаром | F177: 200/15 | G177: 0.1 | H177: 0 | I177: 17.3 | J177: 59.3 | K177: 376
D178: хлеб | E178: Хлеб пшеничный | F178: 40 | G178: 3 | H178: 0.2 | I178: 19.5 | J178: 91.9 | L178: 139.1
D182: итого | F182: 532 | G182: =SUM(G175:G181) -> 21.3 | H182: =SUM(H175:H181) -> 13.4 | I182: =SUM(I175:I181) -> 98.3 | J182: =SUM(J175:J181) -> 610.7 | L182: =SUM(L175:L181) -> 139.1
A183: =A175 -> 2 | B183: =B175 -> 4 | C183: Обед | D183: закуска
D184: 1 блюдо
D185: 2 блюдо
D186: гарнир
D187: напиток
D188: хлеб бел.
D189: хлеб черн.
D192: итого | F192: =SUM(F183:F191) -> 0 | G192: =SUM(G183:G191) -> 0 | H192: =SUM(H183:H191) -> 0 | I192: =SUM(I183:I191) -> 0 | J192: =SUM(J183:J191) -> 0 | L192: =SUM(L183:L191) -> 0
A193: =A175 -> 2 | B193: =B175 -> 4 | C193: Итого за день: | F193: =F182+F192 -> 532 | G193: =G182+G192 -> 21.3 | H193: =H182+H192 -> 13.4 | I193: =I182+I192 -> 98.3 | J193: =J182+J192 -> 610.7 | L193: =L182+L192 -> 139.1
A194: 2 | B194: 5 | C194: Завтрак | D194: гор.блюдо | E194: фрикадельки рыбные с соусом томатным | F194: 90/30 | G194: 13.4 | H194: 12.9 | I194: 12.3 | J194: 158 | K194: 240/593
D195: гор. блюдо | E195: макаронные изделия отварные | F195: 150 | G195: 5.4 | H195: 5.7 | I195: 33.2 | J195: 206.4 | K195: 203
D196: гор.напиток | E196: чай с сахаром и лимоном | F196: 200/15/5 | G196: 0.3 | H196: 0 | I196: 14.8 | J196: 60 | K196: 377
D197: хлеб | E197: хлеб пшеничный | F197: 40 | G197: 3 | H197: 0.2 | I197: 19.5 | J197: 91.9 | K197: ТТК№6 | L197: 139.1
D202: итого | F202: 530 | G202: 22.1 | H202: 18.8 | I202: 79.8 | J202: 516.3 | L202: 139.1
A203: 2 | B203: 5 | C203: обед | D203: закуска
D204: 1 блюдо
D205: 2 блюдо
D206: гарнир
D207: напиток
D208: хлеб. бел
D209: хлеб.чер
D212: итого | F212: 0 | G212: 0 | H212: 0 | I212: 0 | J212: 0 | K212: 0 | L212: 0
A213: 2 | B213: 5 | C213: итого | D213: за день | F213: 530 | G213: 22.1 | H213: 18.8 | I213: 79.8 | J213: 516.3 | K213: 0 | L213: 139.1
A214: 2 | B214: 6 | C214: завтрак | D214: гор. блюдо | E214: каша вязкая молочная геркулесовая | F214: 200 | G214: 5.6 | H214: 10.6 | I214: 40.7 | J214: 275 | K214: 174
D215: гор. блюдо | E215: Вареники ленивые отварные | F215: 120 | G215: 12.7 | H215: 6 | I215: 27.9 | J215: 216.5 | K215: 149
D216: напиток | E216: чай с сахаром каркаде | F216: 200/15 | G216: 0.2 | H216: 0 | I216: 15 | J216: 60.5 | K216: 685
D217: хлеб | E217: хлеб пшеничный | F217: 40 | G217: 3 | H217: 0.2 | I217: 19.5 | J217: 91.9 | L217: 139.1
D222: итого | F222: 525 | G222: 21.5 | H222: 16.8 | I222: 103.1 | J222: 643.9 | L222: 139.1
A223: 2 | B223: 6 | C223: обед | D223: закуска
D224: 1 блюдо
D225: 2 блюдо
D226: гарнир
D227: напиток
D228: хлеб белый
D229: хлеб чер.
A232: 2 | B232: 6 | D232: итого | F232: 0 | G232: 0 | H232: 0 | I232: 0 | J232: 0 | K232: 0 | L232: 139.1
C234: Среднее значение за период: | F234: =(F23+F42+F61+F80+F98+F117+F136+F155+F174+F193)/(IF(F23=0, 0, 1)+IF(F42=0, 0, 1)+IF(F61=0, 0, 1)+IF(F80=0, 0, 1)+IF(F98=0, 0, 1)+IF(F117=0, 0, 1)+IF(F136=0, 0, 1)+IF(F155=0, 0, 1)+IF(F174=0, 0, 1)+IF(F193=0, 0, 1)) -> 520.1 | G234: 19.2 | H234: 19.6 | I234: 81 | J234: 549.4 | L234: =(L23+L42+L61+L80+L98+L117+L136+L155+L174+L193)/(IF(L23=0, 0, 1)+IF(L42=0, 0, 1)+IF(L61=0, 0, 1)+IF(L80=0, 0, 1)+IF(L98=0, 0, 1)+IF(L117=0, 0, 1)+IF(L136=0, 0, 1)+IF(L155=0, 0, 1)+IF(L174=0, 0, 1)+IF(L193=0, 0, 1)) -> 139.1
